bitfinex/quotes_ETHUSD_20220219
["timestamp","ask_amount","ask_price","bid_price","bid_amount"]
[1645266184769,12.75348,2774.1,2773.9,0.00197993]
[1645266184967,3.5,2774.0,2773.5,0.00351687]
[1645266185170,4.40173,2774.0,2773.5,0.00351687]
[1645266185369,4.40173,2774.0,2773.9,0.00198]
[1645266185570,15.35173,2774.0,2773.9,0.00198]
[1645266185774,4.40173,2774.0,2773.9,0.00198]
[1645266186231,4.40173,2774.0,2773.1,0.00351687]
[1645266186426,0.90179,2773.6,2773.1,0.00351687]
[1645266186627,3.5,2774.0,2773.1,0.00351687]
[1645266186628,4.1132,2774.2,2773.4,0.02970544]
[1645266186827,0.433,2774.2,2773.4,0.02970544]
[1645266187327,0.90159,2774.0,2773.4,0.02970544]
[1645266187527,4.62559929,2773.9,2773.1,0.00351687]
[1645266187731,4.62559929,2773.9,2773.7,0.00198017]
[1645266187732,0.9017,2773.8,2773.7,0.00198017]
[1645266188027,15.3517,2773.8,2773.7,8.017e-05]
[1645266188228,10.95,2773.6,2773.2,0.02970705]
[1645266188429,5.7369988,2773.5,2773.2,0.02970705]
[1645266188627,5.7369988,2773.5,2772.9,0.00351687]
[1645266188833,1.80403,2773.4,2772.9,0.00351687]
[1645266189027,1.80403,2773.4,2772.6,1.11620876]
[1645266189028,0.99102933,2773.1,2772.6,1.11620876]
[1645266189228,0.99102933,2773.1,2772.7,0.00351687]
[1645266189428,0.99102933,2773.1,2772.0,0.25]
[1645266189429,3.5,2773.0,2772.5,0.00351687]
[1645266189633,3.5,2773.0,2772.6,0.00351687]
[1645266189634,5.30405,2773.0,2772.6,0.00351687]
[1645266189879,5.30405,2773.0,2772.1,0.00351687]
[1645266190070,0.90216,2772.7,2772.1,0.00351687]
[1645266190268,0.90216,2772.7,2771.5,0.25351687]
[1645266190469,0.90216,2772.7,2772.0,1.08208586]
[1645266190470,1.1642805,2772.5,2772.0,1.08208586]
[1645266190771,2.0664705,2772.5,2772.0,1.08560273]
[1645266191169,0.90219,2772.4,2772.0,1.08560273]
[1645266191374,0.90219,2772.4,2772.0,1.08208586]
[1645266191570,0.9021869,2772.3,2772.0,1.08208586]
[1645266191770,2.0664705,2772.5,2772.0,1.08560273]
[1645266191771,0.90219,2772.5,2772.0,1.08560273]
[1645266191972,0.90204,2772.7,2772.0,1.08208586]
[1645266192170,0.90204,2772.7,2772.0,1.08560273]
[1645266192569,5.30412,2772.9,2772.1,0.00212834]
[1645266192769,0.97565437,2772.8,2772.1,0.00564521]
[1645266192971,1.87763437,2772.8,2772.1,0.00564521]
[1645266193372,1.87763437,2772.8,2772.1,0.00351687]
[1645266193373,0.90213,2772.6,2772.1,0.00351687]
[1645266193614,0.90213,2772.6,2772.3,0.00212829]
[1645266194212,1.80428,2772.6,2772.3,0.00212829]
[1645266194715,5.30441,2772.5,2772.1,0.00351687]
[1645266194916,5.30441,2772.5,2770.9,0.35828]
[1645266194917,5.30441,2772.5,2772.3,0.00212829]
[1645266195113,1.80441,2772.5,2772.3,0.00212829]
[1645266195516,1.8044404,2772.5,2772.3,0.00212829]
[1645266196017,0.90213,2772.6,2771.9,0.00351687]
[1645266196313,1.18293893,2772.3,2771.9,0.00351687]
[1645266196513,0.9021437,2772.3,2771.9,0.00351687]
[1645266196718,0.13819997,2772.7,2771.9,0.00351687]
[1645266197373,0.13819997,2772.7,2772.2,0.00212893]
[1645266197564,1.04023727,2772.7,2772.2,0.00212893]
[1645266197765,1.18582879,2772.6,2772.2,0.00212893]
[1645266198363,1.18582879,2772.6,2771.9,0.00351687]
[1645266198566,1.18582879,2772.6,2772.3,0.0021289]
[1645266198765,0.9020944,2772.5,2772.3,0.0021289]
[1645266198967,1.18582879,2772.6,2772.3,0.0021289]
[1645266199473,0.13819997,2772.7,2771.9,0.00351687]
[1645266199668,7.23277204,2773.2,2772.3,0.00212889]
[1645266200667,5.71337204,2773.2,2772.3,0.00351687]
[1645266200966,5.71337204,2773.2,2772.6,0.00212881]
[1645266201416,5.71337204,2773.2,2772.6,0.90377881]
[1645266201617,5.71337204,2773.2,2772.6,0.00564568]
[1645266201816,5.71337204,2773.2,2772.4,1.80329]
[1645266202024,5.71337204,2773.2,2772.5,0.00351687]
[1645266202222,5.71337204,2773.2,2772.8,0.00212877]
[1645266202416,5.71337204,2773.2,2773.0,1.04552258]
[1645266202616,0.9017981,2773.5,2773.0,1.04552258]
[1645266202817,0.9017981,2773.5,2773.0,1.04903945]
[1645266203416,0.9017981,2773.5,2773.1,0.00212868]
[1645266203616,3.6073191,2773.7,2773.1,0.00212868]
[1645266203617,0.9017103,2773.7,2773.1,0.00212868]
[1645266204225,3.25769997,2774.3,2773.0,1.04903945]
[1645266204420,3.25769997,2774.3,2773.8,0.93780677]
[1645266204421,4.4240666,2774.3,2773.8,0.93780677]
[1645266204628,5.65637204,2774.5,2773.8,0.94132364]
[1645266204629,5.6584997,2774.5,2773.8,0.94132364]
[1645266204881,0.00212766,2774.5,2773.8,0.94132364]
[1645266205472,3.5,2775.1,2773.8,0.94132364]
[1645266205671,0.00212804,2774.5,2773.8,1.84257364]
[1645266206772,0.97506187,2775.1,2774.0,0.90117]
[1645266207072,0.97506187,2775.1,2774.7,0.89591567]
[1645266207277,0.73632949,2774.5,2774.4,1.17079722]
[1645266208072,0.73632949,2774.5,2774.1,0.6556]
[1645266208276,0.73632949,2774.5,2773.8,0.03439414]
[1645266208472,0.73632949,2774.5,2773.8,0.03087727]
[1645266209117,0.73632949,2774.5,2773.6,0.90483687]
[1645266209315,0.73632949,2774.5,2773.7,0.00351687]
[1645266209316,0.7383873,2774.5,2773.7,0.00351687]
[1645266209716,0.7383873,2774.5,2773.6,0.03087766]
[1645266209925,11.6883873,2774.5,2773.6,0.03087766]
[1645266210116,0.84303505,2774.0,2773.6,0.03087766]
[1645266210420,0.84303505,2774.0,2773.5,0.00351687]
[1645266210621,1.74472505,2774.0,2773.5,0.00557543]
[1645266210821,0.84303505,2774.0,2773.5,0.03645345]
[1645266211217,0.9016759,2773.8,2773.5,0.03645345]
[1645266211618,0.9016759,2773.8,2773.0,0.00823569]
[1645266211619,0.9016759,2773.8,2773.0,0.86447447]
[1645266211815,0.9016759,2773.8,2773.5,0.00212866]
[1645266212770,0.9016759,2773.8,2773.1,0.00351687]
[1645266213074,0.9016759,2773.8,2773.5,0.00206768]
[1645266213470,0.90165,2773.9,2773.5,0.00206768]
[1645266213673,2.64627785,2774.0,2773.5,0.00206768]
[1645266213870,2.64627785,2774.0,2773.1,0.00351687]
[1645266214071,2.64627785,2774.0,2773.5,0.00206771]
[1645266214272,0.84303505,2774.0,2773.5,1.07721126]
[1645266214472,0.9015164,2774.3,2773.5,1.08072813]
[1645266214676,0.7002,2774.4,2773.5,1.08072813]
[1645266214677,0.1802,2774.4,2773.5,1.08072813]
[1645266215079,0.1802,2774.4,2773.5,1.07866042]
[1645266215274,1.08175,2774.4,2773.5,1.08072825]
[1645266215475,1.04493656,2774.2,2773.5,1.08072825]
[1645266216318,1.04493656,2774.2,2773.5,1.07866042]
[1645266216515,0.1802,2774.4,2773.5,1.07706299]
[1645266216914,0.73824818,2774.5,2773.5,1.07706299]
[1645266217114,1.5305898,2774.4,2773.5,1.07706299]
[1645266217317,1.5305898,2774.4,2773.5,4.57706299]
[1645266217517,0.73632949,2774.5,2774.2,1.13501862]
[1645266217724,1.53058986,2774.4,2774.2,1.13501862]
[1645266218116,0.73824822,2774.5,2773.5,0.00191948]
[1645266218315,1.53056229,2774.4,2773.5,0.00191948]
[1645266218518,2.43205229,2774.4,2773.5,0.00191948]
[1645266218718,1.53056229,2774.3,2773.4,1.19191687]
[1645266218920,5.93207459,2774.3,2773.5,0.00191948]
[1645266219217,2.52930186,2774.2,2773.6,0.86166141]
[1645266219415,1.53056229,2774.1,2773.6,0.86166141]
[1645266219865,0.99873957,2774.2,2773.6,0.86166141]
[1645266220269,0.91846409,2774.5,2773.6,0.86166141]
[1645266220463,1.53061433,2774.4,2773.6,0.86166141]
[1645266220664,1.53061433,2774.4,2773.6,1.76298141]
[1645266221162,1.53061433,2774.4,2774.2,1.00765824]
[1645266221564,0.73826416,2774.5,2774.2,1.00765824]
[1645266222365,0.73632949,2774.5,2774.2,1.00765824]
[1645266222564,0.73826431,2774.5,2774.2,1.00765824]
[1645266223265,0.86176617,2775.4,2774.3,3.5]
[1645266223467,0.68156617,2775.5,2774.3,7.52]
[1645266223715,0.98526571,2775.3,2774.7,1.02751031]
[1645266223918,2.43425477,2775.9,2774.7,1.02751031]
[1645266223919,1.53011715,2775.2,2774.7,1.02751031]
[1645266224114,2.27546617,2775.8,2774.7,1.02751031]
[1645266224317,0.13819997,2775.9,2774.7,1.02751031]
[1645266224318,1.53011555,2775.7,2774.7,1.02751031]
[1645266224515,1.53011555,2775.6,2774.7,1.02751031]
[1645266224716,1.53011555,2775.5,2774.7,1.02751031]
[1645266224914,0.9005765,2775.6,2774.7,1.02751031]
[1645266225115,1.53011555,2775.5,2774.7,1.02751031]
[1645266225321,1.53011555,2775.8,2774.7,1.02751031]
[1645266226216,2.43115895,2775.8,2775.3,0.9538191]
[1645266226518,1.53011555,2775.7,2775.3,0.9538191]
[1645266226720,1.53011555,2775.6,2775.3,0.9538191]
[1645266226915,1.53011555,2775.8,2775.3,0.9538191]
[1645266227116,1.52997131,2775.7,2775.3,0.9538191]
[1645266227378,0.00212789,2775.6,2775.2,0.22266886]
[1645266227567,0.00212789,2775.6,2774.7,1.2335]
[1645266227769,0.00212789,2775.6,2774.8,3.5]
[1645266228367,1.53002842,2776.1,2774.8,3.5]
[1645266228569,0.00212795,2775.3,2775.2,1.14128419]
[1645266228969,0.00212795,2775.3,2774.7,3.55532]
[1645266229568,1.53002842,2775.6,2774.7,3.55532]
[1645266229769,0.00212801,2775.1,2774.8,0.90096]
[1645266229972,0.00212801,2775.1,2774.7,4.456236]
[1645266229973,0.00212801,2775.1,2774.7,1.2335]
[1645266230170,0.00212801,2775.1,2775.0,1.09220525]
[1645266230676,0.9964796,2775.7,2775.0,1.09220525]
[1645266230874,0.00212799,2775.2,2775.0,1.09220525]
[1645266231318,0.00212799,2775.2,2774.7,1.2335]
[1645266231520,0.00212799,2775.2,2774.5,0.25]
[1645266231724,0.00212799,2775.2,2774.1,0.00212886]
[1645266231922,3.5,2775.2,2774.0,0.90121]
[1645266232123,1.5301208,2775.1,2774.0,0.90121]
[1645266232324,0.00212804,2775.0,2774.1,0.00212876]
[1645266232522,6.19240349,2775.0,2774.1,0.00212876]
[1645266232728,0.90137,2774.8,2774.1,0.00212876]
[1645266232925,5.03045261,2774.7,2774.1,0.00212876]
[1645266233124,3.5,2774.7,2774.1,0.00212876]
[1645266233326,1.53056772,2774.6,2773.8,1.1822]
[1645266233525,12.01511881,2774.3,2774.1,0.00212855]
[1645266233729,3.5,2774.2,2774.1,0.00212855]
[1645266233926,1.08177,2774.5,2774.1,0.00212855]
[1645266233927,0.1802,2774.5,2774.1,0.00212855]
[1645266234124,0.00212811,2774.6,2774.1,0.00212855]
[1645266234323,3.6802,2774.9,2773.6,0.85444427]
[1645266234324,1.5306234,2774.8,2773.6,0.85444427]
[1645266234524,0.90148,2774.6,2773.6,0.85444427]
[1645266234724,0.90148,2774.6,2774.1,0.00191897]
[1645266234725,2.4320804,2774.5,2774.1,0.00191897]
[1645266234983,1.92116048,2774.5,2774.1,0.00191897]
[1645266235186,1.53070032,2774.4,2774.1,0.00191897]
[1645266235582,0.90155,2774.3,2773.6,0.85444427]
[1645266235782,1.8030921,2774.3,2774.1,0.00191897]
[1645266236187,0.90154,2774.4,2774.1,0.00191897]
[1645266236884,1.5306996,2774.3,2773.6,0.85444427]
[1645266237086,1.5306996,2774.3,2774.1,0.00191897]
[1645266237283,0.9014905,2774.4,2774.1,0.00191897]
[1645266237685,1.92120348,2774.5,2774.1,0.00191897]
[1645266237686,1.01970348,2774.5,2774.1,0.00191897]
[1645266237984,1.01970348,2774.5,2773.6,0.85444427]
[1645266238383,1.01970348,2774.5,2774.1,0.00199347]
[1645266239026,1.53071292,2774.4,2774.1,0.00199347]
[1645266239229,2.43225292,2774.4,2773.6,0.85444427]
[1645266239428,1.01970348,2774.5,2774.1,0.00199347]
[1645266240028,0.90342733,2774.6,2774.1,0.00199347]
[1645266240029,0.00199853,2774.6,2774.1,0.00199347]
[1645266240234,0.90345853,2774.6,2774.1,0.00199347]
[1645266240429,0.90345853,2774.6,2773.6,0.85444427]
[1645266240430,10.95,2774.5,2773.6,0.85444427]
[1645266240630,10.95,2774.3,2773.6,0.85444427]
[1645266240829,1.53071073,2774.2,2774.1,0.00199347]
[1645266241233,12.48071073,2774.2,2774.1,0.00199347]
[1645266241632,12.48071073,2774.2,2773.1,0.00351687]
[1645266241831,12.48071073,2774.2,2773.6,0.02965559]
[1645266241832,0.93315434,2773.8,2773.6,0.02965559]
[1645266242030,10.95,2773.7,2773.6,0.02965559]
[1645266242468,5.59850604,2773.8,2773.6,0.02965559]
[1645266242669,5.59453928,2773.8,2773.6,0.02965559]
[1645266242868,4.54059434,2773.8,2773.1,0.00351687]
[1645266243068,4.54059434,2773.8,2772.9,0.00351687]
[1645266243266,0.90184,2773.7,2773.0,1.0583313]
[1645266243470,0.90184,2773.7,2773.0,1.06184817]
[1645266243669,0.90179,2773.7,2773.0,1.06184817]
[1645266244470,1.8035886,2773.7,2773.0,1.06184817]
[1645266244668,0.90179,2773.5,2773.0,1.06184817]
[1645266244869,2.7053772,2773.5,2773.0,0.00351687]
[1645266245081,2.7053772,2773.5,2772.7,0.00351687]
[1645266245082,5.4109472,2773.5,2772.7,0.00351687]
[1645266245275,4.5091372,2773.5,2772.7,0.00351687]
[1645266245482,4.5091372,2773.5,2773.1,0.00192545]
[1645266245675,2.43289105,2773.4,2773.1,0.00192545]
[1645266245974,2.7055436,2773.4,2773.1,0.00192545]
[1645266246231,3.6073936,2773.4,2773.1,0.00192545]
[1645266246430,2.01582535,2773.3,2772.7,0.98884918]
[1645266246624,2.01582535,2773.3,2772.8,0.00351687]
[1645266247131,0.90189,2773.1,2772.8,0.00351687]
[1645266247325,0.9018962,2773.2,2772.7,0.01384792]
[1645266247527,0.90181,2773.4,2772.4,0.00351687]
[1645266247925,0.90181,2773.4,2772.8,0.00193662]
[1645266248324,0.90183,2773.2,2772.8,1.18662385]
[1645266248527,0.90183,2773.2,2772.8,1.19014072]
[1645266248826,0.90183,2773.2,2772.5,0.00351687]
[1645266249030,11.85183,2773.2,2772.9,0.00193661]
[1645266249425,0.90183,2773.2,2772.9,0.00193661]
[1645266250068,1.80395,2773.1,2772.5,0.00351687]
[1645266250269,0.9019742,2773.0,2772.9,0.00193659]
[1645266250476,2.00049826,2773.0,2772.9,0.00193659]
[1645266250775,2.00049826,2773.0,2772.5,0.04031765]
[1645266250776,0.00387317,2772.7,2772.5,0.04031765]
[1645266250971,0.90597317,2772.7,2772.5,0.03680078]
[1645266251171,0.90597317,2772.7,2772.3,0.00351687]
[1645266251377,1.80802647,2772.7,2772.1,0.00351687]
[1645266251973,0.8634126,2772.5,2772.1,0.00351687]
[1645266252174,0.8634126,2772.5,2771.6,0.1802]
[1645266252175,0.8634126,2772.5,2771.6,3.50351687]
[1645266252472,1.8042649,2772.3,2771.7,0.00351687]
[1645266252671,1.8042649,2772.3,2771.4,0.00351687]
[1645266253071,1.8042649,2772.3,2771.8,0.95407129]
[1645266253271,1.8042649,2772.3,2771.8,0.95758816]
[1645266254720,1.8042649,2772.3,2771.8,0.00351687]
[1645266254918,1.8042649,2772.3,2771.7,0.007]
[1645266255121,1.8042649,2772.3,2771.9,0.00213193]
[1645266255921,0.9021349,2772.3,2771.9,0.00213193]
[1645266256121,0.8634126,2772.5,2771.8,0.00351687]
[1645266256122,1.7654709,2772.5,2771.8,0.00351687]
[1645266256321,1.7654709,2772.5,2772.0,0.00213191]
[1645266256521,0.8634126,2772.5,2772.0,0.00213191]
[1645266257125,0.90594317,2772.7,2772.0,0.00213191]
[1645266257393,0.90594317,2772.7,2771.8,0.00351687]
[1645266257394,0.00387317,2772.7,2771.9,0.52]
[1645266257679,5.00387317,2772.7,2772.1,0.00213187]
[1645266257879,10.95,2772.5,2772.1,0.00213187]
[1645266258077,10.95,2772.3,2772.1,0.00213187]
[1645266258274,12.75492,2772.2,2772.1,0.00213187]
[1645266258474,12.75492,2772.2,2771.7,0.007]
[1645266258676,1.01660397,2771.8,2771.7,0.007]
[1645266259176,11.96660397,2771.8,2771.6,0.01384302]
[1645266259384,11.96660397,2771.8,2771.4,0.00351687]
[1645266259385,10.95,2771.6,2771.2,0.00351687]
[1645266259580,10.95,2771.6,2771.0,0.00351687]
[1645266259581,12.7551891,2771.6,2771.0,0.00351687]
[1645266259881,10.95,2771.4,2770.5,0.07028787]
[1645266260084,10.95,2771.4,2770.5,0.066771]
[1645266260085,10.95,2771.2,2770.5,0.066771]
[1645266260289,0.77,2771.4,2770.5,0.066771]
[1645266260290,0.91016502,2770.6,2770.5,0.066771]
[1645266260478,11.86769402,2770.6,2770.4,0.00382018]
[1645266260680,12.38769402,2770.6,2770.4,0.00382018]
[1645266260881,1.43769402,2770.6,2770.4,0.00382018]
[1645266261316,1.80594,2770.5,2770.4,0.00382018]
[1645266261519,1.80594,2770.5,2770.4,2.018e-05]
[1645266261723,10.0,2770.3,2770.1,0.97250605]
[1645266262127,0.52,2770.2,2770.1,0.97250605]
[1645266262321,0.007529,2770.6,2770.1,0.97250605]
[1645266262519,0.910239,2770.6,2770.1,0.97250605]
[1645266262722,0.9027984,2770.4,2770.1,0.97250605]
[1645266263619,1.8056684,2770.4,2770.1,0.97464389]
[1645266264021,0.9027299,2770.7,2770.1,0.97464389]
[1645266264218,0.9027299,2770.7,2770.1,0.97816076]
[1645266264420,0.9027299,2770.7,2770.1,0.97602292]
[1645266264625,0.90266,2771.0,2770.1,0.97602292]
[1645266264884,1.56081997,2771.1,2770.3,0.0021378]
[1645266264885,0.13819997,2771.1,2770.3,0.0021378]
[1645266265171,0.13819997,2771.1,2770.6,1.188435]
[1645266265372,0.1804,2771.6,2770.7,3.5]
[1645266265571,0.90457427,2771.7,2770.7,3.50351687]
[1645266265572,0.9024376,2771.7,2770.7,3.50351687]
[1645266265770,0.9024376,2771.7,2770.8,0.00351687]
[1645266266172,0.9024376,2771.7,2771.1,0.92018975]
[1645266266173,1.8069845,2771.7,2771.1,0.92018975]
[1645266266378,1.8069845,2771.7,2771.1,0.92370662]
[1645266266379,0.0021369,2771.7,2771.1,0.92370662]
[1645266266973,0.902347,2771.9,2771.1,0.92370662]
[1645266267179,0.00213718,2771.7,2771.3,0.00213755]
[1645266267378,0.00213718,2771.7,2771.6,0.90558479]
[1645266268174,0.13819997,2772.5,2771.6,0.90558479]
[1645266268378,0.00213727,2771.8,2771.7,0.00351687]
[1645266268820,0.00213727,2771.8,2771.6,0.90558479]
[1645266269220,0.13819997,2772.5,2771.6,0.90558479]
[1645266269421,0.13819997,2772.5,2771.7,0.00351687]
[1645266269621,0.00213726,2771.8,2771.5,0.00213755]
[1645266270221,0.00213726,2771.8,2771.5,0.90409755]
[1645266270424,0.00387317,2772.7,2771.5,0.90196]
[1645266270624,0.00387317,2772.7,2771.6,0.00351687]
[1645266270823,0.00213727,2771.8,2771.6,0.00351687]
[1645266271023,0.00213727,2771.8,2771.7,1.09910571]
[1645266271622,0.00387317,2772.7,2771.7,1.09910571]
[1645266271826,0.00213724,2771.9,2771.8,0.00351687]
[1645266272029,0.00213724,2771.9,2771.8,17.0611153]
[1645266272030,3.724e-05,2771.9,2771.8,17.0611153]
[1645266272228,3.724e-05,2771.9,2771.8,17.6611153]
[1645266272485,3.724e-05,2771.9,2771.8,19.8052153]
[1645266272881,0.00387317,2772.7,2771.9,0.00351915]
[1645266273085,0.00387317,2772.7,2772.6,5.0]
[1645266273086,7.317e-05,2772.7,2772.6,5.0]
[1645266273282,7.317e-05,2772.7,2772.6,16.6502]
[1645266273480,7.317e-05,2772.7,2772.6,17.9502]
[1645266273676,7.317e-05,2772.7,2772.6,18.2502]
[1645266273877,7.317e-05,2772.7,2772.6,2.12]
[1645266274079,7.317e-05,2772.7,2772.6,1.12]
[1645266274279,7.317e-05,2772.7,2772.6,2.02132]
[1645266275982,7.317e-05,2772.7,2772.6,2.3796]
[1645266276229,7.317e-05,2772.7,2772.6,2.5598]
[1645266276425,7.317e-05,2772.7,2772.6,3.5598]
[1645266277026,7.317e-05,2772.7,2772.6,2.20152]
[1645266277228,7.317e-05,2772.7,2772.6,3.20152]
[1645266277633,7.317e-05,2772.7,2772.6,4.07259428]
[1645266277828,7.317e-05,2772.7,2772.6,14.15152]
[1645266278629,7.317e-05,2772.7,2772.6,3.20152]
[1645266280773,7.317e-05,2772.7,2772.6,2.02132]
[1645266281273,7.317e-05,2772.7,2772.6,3.02132]
[1645266284523,7.317e-05,2772.7,2772.6,14.86752526]
[1645266284725,7.317e-05,2772.7,2772.6,13.97132]
[1645266285224,7.317e-05,2772.7,2772.6,14.15152]
[1645266285420,7.317e-05,2772.7,2772.6,19.15152]
[1645266285726,0.1802,2774.9,2772.6,19.15152]
[1645266285727,1.29810009,2774.8,2774.1,0.94774848]
[1645266285923,1.29810009,2774.8,2773.8,0.90126]
[1645266285924,0.68502196,2773.9,2773.8,0.90126]
[1645266286123,0.68502196,2773.9,2773.8,1.98965421]
[1645266286524,3.6802,2775.0,2773.8,1.98965421]
[1645266286724,3.6802,2775.0,2773.9,4.0]
[1645266286725,3.5,2775.0,2773.9,4.0]
[1645266286925,0.1802,2775.3,2774.1,0.90113]
[1645266287121,0.13819997,2775.4,2774.1,0.90113]
[1645266287122,1.53052091,2775.2,2774.1,0.90113]
[1645266287396,3.5,2775.1,2774.1,0.90113]
[1645266287581,0.88476381,2775.0,2774.1,0.90113]
[1645266287785,0.88476381,2775.0,2774.1,2.70325]
[1645266287981,0.88476381,2775.0,2774.4,1.09060891]
[1645266288380,0.13819997,2775.4,2774.4,1.09060891]
[1645266288582,1.53050249,2775.3,2774.4,1.09060891]
[1645266289583,0.00213644,2775.0,2774.4,1.09060891]
[1645266290585,1.53050249,2775.2,2774.4,1.09060891]
[1645266290784,0.00213648,2774.8,2773.9,1.3252]
[1645266290997,0.00213648,2774.8,2773.4,0.25]
[1645266291230,0.52,2774.7,2773.3,5.5134]
[1645266291424,4.2002,2774.7,2773.3,2.7808]
[1645266291625,1.53083309,2774.6,2773.3,2.7808]
[1645266291824,0.92565803,2773.9,2773.3,2.7808]
[1645266292024,0.92565803,2773.9,2772.7,3.2407]
[1645266292025,0.90165,2774.0,2772.8,0.1802]
[1645266292625,0.90165,2774.0,2772.7,1.3762]
[1645266292626,4.40165,2774.0,2772.7,1.3762]
[1645266292824,4.40165,2774.0,2772.7,1.1262]
[1645266292825,4.92165,2774.0,2772.7,1.1262]
[1645266293030,0.90185,2773.6,2772.7,1.1262]
[1645266293228,1.8037,2773.7,2772.7,1.1262]
[1645266293229,1.1178421,2773.2,2772.7,1.1262]
[1645266293430,3.5,2773.1,2772.4,0.93153377]
[1645266293626,0.00213682,2773.5,2772.4,0.93153377]
[1645266293627,0.52,2773.4,2772.4,0.93153377]
[1645266293824,3.5,2773.3,2772.4,0.93153377]
[1645266294025,0.9019113,2773.1,2772.4,0.93153377]
[1645266294225,3.5,2773.3,2772.4,0.93153377]
[1645266294426,0.00213695,2773.0,2772.4,0.93153377]
[1645266295269,3.5,2773.3,2772.4,0.93153377]
[1645266295470,0.52,2773.4,2772.4,0.93153377]
[1645266295677,0.00213692,2772.9,2772.4,0.93153377]
[1645266296471,1.5131119,2773.4,2772.4,0.93153377]
[1645266296671,3.5,2773.3,2772.4,0.93153377]
[1645266296872,0.00213689,2772.9,2772.4,0.93153377]
[1645266297772,0.9018984,2773.2,2772.4,0.93153377]
[1645266297974,0.00213689,2772.9,2772.4,0.93153377]
[1645266299023,1.5131119,2773.4,2772.4,0.93153377]
[1645266299227,0.00213689,2772.9,2772.4,0.93153377]
[1645266300025,0.9931119,2773.4,2772.4,0.93153377]
[1645266300222,3.5,2773.3,2772.1,0.90181]
[1645266300428,0.00213689,2772.9,2771.9,1.18111915]
[1645266300829,0.00213689,2772.9,2771.9,6.18111915]
[1645266301028,0.00213689,2772.9,2772.1,5.0]
[1645266301229,0.00213689,2772.9,2772.3,6.20168]
[1645266301428,9.4235,2774.1,2772.4,0.52]
[1645266301629,0.00142188,2772.9,2772.5,0.90155]
[1645266301828,0.00142188,2772.9,2772.6,0.98816812]
[1645266302383,0.00142188,2772.9,2772.7,0.90163]
[1645266302673,3.5,2774.0,2772.6,0.98816812]
[1645266302872,0.00142206,2772.9,2772.6,0.98816812]
[1645266303673,1.04564548,2773.6,2772.6,0.98816812]
[1645266303974,0.00213968,2772.9,2772.6,0.98816812]
[1645266304672,0.00213968,2772.9,2772.6,1.58816812]
[1645266304873,3.5,2774.0,2772.6,1.58816812]
[1645266305074,4.4016,2774.3,2772.6,1.58816812]
[1645266305274,0.00213968,2772.9,2772.6,1.98816812]
[1645266305577,0.00213968,2772.9,2772.8,0.9016]
[1645266305774,0.00213968,2772.9,2772.8,1.5016]
[1645266306237,4.62224054,2774.2,2773.5,1.06799651]
[1645266306428,0.3187,2774.1,2773.5,1.06799651]
[1645266306826,1.63312973,2773.4,2772.8,1.6677]
[1645266307026,1.63312973,2773.4,2772.8,1.1477]
[1645266307227,1.63312973,2773.4,2772.5,1.80318]
[1645266307425,1.63312973,2773.4,2772.5,2.40318]
[1645266307426,1.63170639,2773.4,2772.5,2.40318]
[1645266307627,1.63170639,2773.4,2772.5,3.58338]
[1645266307628,0.00213963,2773.2,2772.5,3.58338]
[1645266307927,0.00213963,2773.2,2772.8,0.90152]
[1645266308128,0.00213963,2773.2,2772.8,1.50152]
[1645266308524,1.63170639,2773.4,2772.8,1.50152]
[1645266308729,0.00213965,2773.1,2772.8,1.50152]
[1645266308929,0.00213965,2773.1,2772.9,0.90154]
[1645266309324,0.00213965,2773.1,2773.0,0.90144]
[1645266309526,0.63384604,2773.4,2773.0,0.90144]
[1645266309726,0.3187,2774.1,2773.1,3.5]
[1645266309979,0.3187,2774.1,2773.3,0.901297]
[1645266310280,0.3187,2774.1,2773.5,0.90127]
[1645266310479,0.3187,2774.1,2774.0,1.02844516]
[1645266310780,0.3187,2774.1,2773.4,1.80253]
[1645266310979,0.3187,2774.1,2773.4,2.7039]
[1645266311178,0.3187,2774.1,2773.4,4.506552]
[1645266311581,0.3187,2774.1,2773.6,0.90131]
[1645266311778,0.3187,2774.1,2773.6,1.20131]
[1645266311980,0.3187,2774.1,2773.7,0.86824076]
[1645266312380,0.00213943,2774.0,2773.7,0.86824076]
[1645266312982,7.49,2774.7,2773.8,0.90126]
[1645266313179,7.49,2774.7,2773.8,1.42126]
[1645266313180,1.53057861,2774.6,2773.8,1.42126]
[1645266313382,7.49,2774.7,2773.8,0.82]
[1645266314026,7.49,2774.7,2774.1,0.90114]
[1645266314221,7.49,2774.7,2774.2,0.52]
[1645266314725,1.53046188,2774.6,2774.2,0.52]
[1645266314923,8.30976614,2775.4,2774.3,0.88310207]
[1645266315125,1.53043149,2775.3,2774.3,0.88310207]
[1645266315424,0.68156617,2775.2,2774.3,0.88310207]
[1645266315624,7.62819997,2775.4,2774.3,0.88310207]
[1645266315625,1.53043149,2775.1,2774.3,0.88310207]
[1645266315822,1.53043149,2775.3,2774.3,0.88310207]
[1645266316022,1.53043149,2775.2,2774.3,0.88310207]
[1645266316221,1.53043149,2775.2,2774.9,1.02803433]
[1645266316423,1.53043149,2775.2,2774.2,1.42117]
[1645266316628,1.53043149,2775.2,2774.3,0.90111]
[1645266316825,1.53043149,2775.2,2774.4,0.90108]
[1645266317226,0.0021392,2774.9,2774.4,0.90108]
[1645266317477,0.0021392,2774.9,2774.5,1.01121883]
[1645266317674,1.53257069,2774.9,2774.5,1.01121883]
[1645266317875,1.53043149,2774.8,2774.5,1.01121883]
[1645266318078,0.0021392,2774.9,2774.5,1.01121883]
[1645266318079,0.0021392,2774.9,2774.6,0.90104]
[1645266318273,7.62819997,2775.4,2774.6,0.90104]
[1645266318274,1.53037488,2775.3,2774.6,0.90104]
[1645266318476,0.00213922,2774.8,2774.6,0.90104]
[1645266319484,1.53037488,2775.3,2775.1,0.98025474]
[1645266320086,1.53037488,2775.3,2774.5,0.52]
[1645266320283,1.53037488,2775.3,2774.3,4.50526]
[1645266320484,1.53037488,2775.3,2774.3,3.60418]
[1645266320881,0.00213918,2774.9,2774.3,3.60418]
[1645266321332,0.00213918,2774.9,2774.4,1.16508897]
[1645266321534,0.00213918,2774.9,2774.4,2.06616897]
[1645266321733,1.53037488,2775.3,2774.4,2.06616897]
[1645266321939,1.53037488,2775.3,2774.9,0.8263846]
[1645266322635,5.03037488,2775.3,2774.4,0.1801]
[1645266322837,1.53037488,2775.2,2774.4,0.1801]
[1645266323036,7.49,2775.4,2774.4,0.1801]
[1645266323037,1.53037488,2775.1,2774.4,0.3]
[1645266323236,1.53037488,2775.0,2774.3,2.10209]
[1645266323434,0.00213917,2775.0,2774.3,2.40209]
[1645266323837,0.00213917,2775.0,2774.4,0.90108]
[1645266324037,0.00213917,2775.0,2774.5,1.00598865]